bitfinex/quotes_ETHUSD_20220218
["timestamp","ask_amount","ask_price","bid_price","bid_amount"]
[1645149930704,1.30970205,2919.9,2919.4,1.16649367]
[1645149931011,1.30970205,2919.9,2919.4,0.89695]
[1645149931204,1.30970205,2919.9,2919.0,0.85654]
[1645149931404,1.30970205,2919.9,2919.3,1.71324]
[1645149931606,1.09941282,2920.0,2919.3,1.71324]
[1645149932407,2.09941282,2920.0,2919.4,0.85662]
[1645149932604,1.09941282,2920.0,2919.5,0.3]
[1645149932804,2.09941282,2920.0,2919.5,0.3]
[1645149933005,1.09941282,2920.0,2919.5,0.3]
[1645149933204,2.09941282,2920.0,2919.5,0.3]
[1645149933651,2.09941282,2920.0,2919.5,0.85663]
[1645149933848,0.00333771,2919.9,2919.5,0.85663]
[1645149934851,1.09941282,2920.0,2919.5,0.85663]
[1645149935051,0.00333775,2919.8,2919.5,0.85663]
[1645149936051,0.51604007,2920.1,2919.6,0.3]
[1645149936659,0.51604007,2920.1,2919.8,0.8669686]
[1645149937703,0.31683788,2920.3,2919.8,0.8669686]
[1645149937901,0.00445057,2920.2,2919.8,0.8669686]
[1645149938601,0.00333546,2920.1,2919.8,0.8669686]
[1645149938805,0.00333546,2920.1,2919.8,1.7235286]
[1645149939702,0.00445057,2920.2,2919.8,1.7235286]
[1645149939903,0.0033355,2920.1,2919.8,1.7235286]
[1645149940408,0.0033355,2920.1,2919.6,0.3]
[1645149940811,2.37854805,2920.2,2919.6,0.3]
[1645149941259,0.00333557,2920.0,2919.7,0.85664]
[1645149941962,2.37854805,2920.2,2919.7,0.85664]
[1645149942367,0.00333557,2920.0,2919.7,0.85664]
[1645149943163,2.37854805,2920.2,2919.7,0.85664]
[1645149943562,0.00333557,2920.0,2919.7,0.85664]
[1645149944364,2.37854805,2920.2,2919.7,0.85664]
[1645149944567,5.0,2919.9,2919.0,0.1711]
[1645149944823,5.0,2919.9,2919.1,0.00333664]
[1645149944824,0.01228892,2919.6,2919.1,0.00333664]
[1645149945015,5.0,2919.3,2919.1,0.00333664]
[1645149945217,0.495,2919.2,2919.1,0.00333664]
[1645149945413,1.495,2919.2,2919.1,0.00333664]
[1645149945714,0.85704,2919.1,2918.5,1.0050865]
[1645149945913,0.495,2919.0,2918.5,1.0050865]
[1645149946115,0.00445057,2918.9,2918.5,1.0050865]
[1645149946317,0.495,2918.8,2918.5,1.0050865]
[1645149946721,0.49945057,2918.8,2918.5,1.0050865]
[1645149947317,0.49945057,2918.8,2918.5,1.4763865]
[1645149947717,0.49945057,2918.8,2918.5,1.3050865]
[1645149948316,0.49945057,2918.8,2918.6,1.71366]
[1645149949548,0.49945057,2918.8,2918.6,1.71699936]
[1645149949751,0.00445057,2918.8,2918.6,1.71699936]
[1645149949949,0.00445057,2919.1,2918.6,1.71699936]
[1645149950252,0.00445057,2919.1,2918.6,0.00333936]
[1645149950449,0.00445057,2919.1,2918.5,1.0050865]
[1645149950751,0.00445057,2919.1,2918.7,0.00333925]
[1645149950752,0.86133057,2919.1,2918.7,0.00333925]
[1645149951353,1.71381,2919.0,2918.7,0.00333925]
[1645149951552,0.30445057,2918.9,2918.7,0.00333925]
[1645149951754,0.92412978,2918.8,2918.2,1.1448082]
[1645149951959,0.00445057,2918.7,2918.2,0.1713]
[1645149952403,1.00445057,2918.7,2918.2,0.1713]
[1645149952603,2.71833057,2918.7,2918.2,0.1713]
[1645149952805,0.3,2918.6,2918.2,0.1713]
[1645149953003,0.00445057,2918.5,2918.2,0.1713]
[1645149953407,0.00445057,2918.5,2918.3,0.00333953]
[1645149953605,1.71404,2918.5,2918.3,0.00333953]
[1645149953804,0.3,2918.4,2918.3,0.00333953]
[1645149954110,0.3,2918.4,2917.4,1.131]
[1645149954111,4.65708,2918.4,2917.4,1.131]
[1645149954309,1.495,2918.3,2917.4,1.131]
[1645149954513,1.495,2918.3,2917.2,2.49742442]
[1645149954514,0.88057119,2917.8,2917.2,2.49742442]
[1645149954705,1.71465,2917.7,2917.2,0.85742442]
[1645149955108,0.3,2917.6,2917.2,0.85742442]
[1645149955507,0.3,2917.6,2917.3,0.00334024]
[1645149956162,0.85723,2917.5,2917.3,0.00334024]
[1645149956562,0.85723,2917.5,2917.2,0.85742442]
[1645149956763,0.85723,2917.5,2917.3,0.00334027]
[1645149957764,0.85723,2917.5,2917.2,0.85742442]
[1645149957963,0.85723,2917.5,2917.3,0.00313527]
[1645149958966,0.85723,2917.5,2917.2,0.85742442]
[1645149959167,0.85723,2917.5,2917.3,0.00313527]
[1645149959368,0.85708,2917.7,2917.3,0.00313527]
[1645149959567,1.71421,2917.9,2917.3,0.00313527]
[1645149960104,1.71421,2917.9,2917.2,1.71452442]
[1645149960105,0.3,2917.8,2917.2,1.71452442]
[1645149960302,1.71421,2917.9,2917.2,1.71452442]
[1645149960501,0.3,2917.8,2917.5,0.00313513]
[1645149960903,1.15704,2917.8,2917.5,0.00313513]
[1645149961407,0.85704,2917.8,2917.2,1.71452442]
[1645149961706,0.85704,2917.8,2917.5,0.0031351]
[1645149962505,0.85704,2917.8,2917.2,0.85742442]
[1645149962707,0.85704,2917.8,2917.5,0.00315598]
[1645149963653,0.85704,2917.8,2917.2,0.85742442]
[1645149964051,0.85704,2917.8,2917.5,0.00315598]
[1645149964857,0.85704,2917.8,2917.2,0.85742442]
[1645149965256,0.85704,2917.8,2917.5,0.00315598]
[1645149966061,0.85704,2917.8,2917.2,0.85742442]
[1645149966564,0.85704,2917.8,2917.5,0.0022418]
[1645149967409,0.85704,2917.8,2917.2,0.85742442]
[1645149967604,0.85704,2917.8,2917.2,21.99448442]
[1645149967804,0.85704,2917.8,2917.4,0.85706]
[1645149968410,0.85704,2917.8,2917.7,1.0313437]
[1645149968611,0.85695,2918.1,2917.7,1.0313437]
[1645149968807,0.00445057,2918.3,2917.7,1.8883037]
[1645149969007,0.00445057,2918.6,2917.7,1.8883037]
[1645149969207,0.30445057,2918.7,2917.7,1.8883037]
[1645149969407,0.3,2918.7,2917.7,1.8883037]
[1645149969608,1.71385,2918.5,2918.3,1.02500195]
[1645149970112,1.71385,2918.5,2917.7,0.85696]
[1645149970113,1.71830057,2918.5,2917.8,0.00333996]
[1645149970508,0.00445057,2918.5,2917.8,0.00333996]
[1645149970710,0.00445057,2918.8,2917.8,0.00333996]
[1645149971050,0.00445057,2918.8,2918.0,0.89788049]
[1645149971453,0.85685,2918.5,2918.0,0.89788049]
[1645149971654,0.00445057,2918.4,2918.0,0.89788049]
[1645149972554,0.85687,2918.3,2918.0,0.89788049]
[1645149972759,0.86132057,2918.3,2917.8,0.00333996]
[1645149973357,0.86132057,2918.3,2917.7,0.85696]
[1645149973557,0.86132057,2918.3,2917.9,0.85692]
[1645149973756,1.85639822,2918.3,2917.9,0.85692]
[1645149973956,0.85687,2918.3,2917.9,0.85692]
[1645149974812,0.85687,2918.3,2917.8,1.19410958]
[1645149975011,1.86476329,2918.3,2917.8,0.00314179]
[1645149975212,2.16476329,2918.3,2917.8,0.00314179]
[1645149975420,0.85715,2918.2,2917.8,0.00314179]
[1645149975612,1.7143,2918.2,2917.8,0.00314179]
[1645149975815,0.85716,2918.1,2917.3,5.1302]
[1645149976028,0.85715,2918.2,2917.4,2.7458]
[1645149976219,0.85715,2918.2,2917.8,0.00314175]
[1645149976417,0.85714,2918.1,2917.8,0.00314175]
[1645149977018,0.85714,2918.1,2917.5,1.05656584]
[1645149977217,0.85714,2918.1,2917.8,0.00308286]
[1645149979362,0.85714,2918.1,2917.5,1.05656584]
[1645149979662,0.85714,2918.1,2917.8,0.00309766]
[1645149980668,0.85714,2918.1,2917.5,1.05656584]
[1645149980864,0.85714,2918.1,2917.8,0.00315657]
[1645149981466,0.85714,2918.1,2917.8,0.86012657]
[1645149981665,0.85714,2918.1,2917.8,0.00315657]
[1645149981866,0.85714,2918.1,2917.5,1.05656584]
[1645149982067,0.85714,2918.1,2918.0,0.97306073]
[1645149982304,1.02416834,2918.4,2918.0,0.97306073]
[1645149982305,0.85697,2918.3,2918.0,0.97306073]
[1645149982503,1.71401,2918.2,2918.0,0.97306073]
[1645149988468,0.85692,2918.2,2918.0,0.97306073]
[1645149988867,0.85692,2918.2,2918.0,0.97215906]
[1645149991311,0.85692,2918.2,2917.5,1.1525]
[1645149991511,0.85692,2918.2,2917.6,1.43643931]
[1645149991711,0.85692,2918.2,2917.8,0.00315385]
[1645149992211,0.85692,2918.2,2917.8,0.86015385]
[1645149992411,0.85692,2918.2,2917.8,2.0025975]
[1645149992711,0.85692,2918.2,2917.8,1.99944365]
[1645149992913,0.85692,2918.2,2917.8,2.00259746]
[1645149993756,0.85692,2918.2,2917.8,1.99944365]
[1645149993957,0.85692,2918.2,2917.8,1.14559746]
[1645149994954,0.85692,2918.2,2917.5,1.1525]
[1645149995154,0.85692,2918.2,2917.8,0.00315381]
[1645149996160,0.85692,2918.2,2917.6,0.98326371]
[1645149996368,0.85692,2918.2,2917.7,1.43646517]
[1645149996559,0.85692,2918.2,2917.9,0.85697]
[1645149998407,0.85692,2918.2,2917.8,0.86016383]
[1645149998609,0.85692,2918.2,2917.8,0.85701]
[1645149998809,0.85692,2918.2,2917.8,0.86016383]
[1645149999810,0.85692,2918.2,2917.8,0.85701]
[1645150000009,0.85692,2918.2,2917.8,0.86016381]
[1645150001065,0.85692,2918.2,2917.8,0.85701]
[1645150001267,0.85692,2918.2,2917.8,0.00315381]
[1645150001469,1.11015529,2918.1,2917.8,0.00315381]
[1645150001670,1.96723529,2918.1,2917.8,0.00315381]
[1645150002069,0.85708,2918.1,2917.8,0.00315381]
[1645150002267,0.85708,2918.1,2917.7,1.43655987]
[1645150002570,2.57109,2918.6,2918.1,1.55852551]
[1645150002766,0.85679,2918.6,2918.1,1.55852551]
[1645150002969,0.85679,2918.6,2918.2,1.43655987]
[1645150003165,1.77435414,2918.6,2918.2,1.43655987]
[1645150003368,1.77435414,2918.6,2918.3,0.85683]
[1645150003968,0.85679,2918.6,2918.3,0.85683]
[1645150004171,0.85679,2918.6,2918.1,1.55852551]
[1645150004372,0.85679,2918.6,2918.2,1.43521207]
[1645150004566,0.85679,2918.6,2918.2,2.29212207]
[1645150004810,0.85679,2918.6,2918.1,1.55852551]
[1645150005210,2.94214476,2918.5,2918.1,1.55852551]
[1645150005409,0.85711,2918.4,2918.1,1.55852551]
[1645150005611,0.85711,2918.3,2918.1,1.55852551]
[1645150005811,1.15711,2918.3,2918.1,1.55852551]
[1645150006009,0.3,2918.3,2918.1,1.55852551]
[1645150006414,1.15711,2918.3,2918.1,1.55852551]
[1645150008015,0.85711,2918.3,2918.1,2.41545551]
[1645150013328,0.85711,2918.3,2918.2,1.43293954]
[1645150014332,0.50711,2918.3,2918.1,2.41545551]
[1645150016566,0.86730376,2918.9,2918.2,1.43173996]
[1645150016767,0.00445057,2918.9,2918.4,0.85672]
[1645150016966,0.00445057,2919.1,2918.9,0.91947523]
[1645150017164,0.87044835,2919.2,2918.9,0.91947523]
[1645150017567,0.87044835,2919.2,2918.5,1.1844]
[1645150017763,0.86730376,2919.2,2918.5,1.1844]
[1645150018165,0.00759548,2919.2,2918.5,1.1844]
[1645150018363,1.72712867,2919.2,2918.5,1.1844]
[1645150018563,1.72712867,2919.2,2918.9,1.15496408]
[1645150018764,0.86427548,2919.2,2918.9,1.15496408]
[1645150018966,0.00445057,2919.2,2918.9,1.15496408]
[1645150019366,0.86425548,2919.2,2918.9,1.15496408]
[1645150020010,1.72710867,2919.2,2918.9,1.15496408]
[1645150020316,0.86111057,2919.2,2918.9,1.15496408]
[1645150020510,0.86425548,2919.2,2918.9,1.15496408]
[1645150020709,0.00759548,2919.2,2918.9,1.15496408]
[1645150021314,0.00445057,2919.2,2918.9,1.15496408]
[1645150021713,0.00445057,2919.2,2918.9,2.01164408]
[1645150021914,0.00759548,2919.2,2918.9,2.01164408]
[1645150022513,0.00445057,2919.2,2918.9,2.01164408]
[1645150022714,0.00445057,2919.2,2918.9,2.64874408]
[1645150022917,0.00759547,2919.2,2918.9,2.64874408]
[1645150023559,0.86420547,2919.2,2918.9,2.64874408]
[1645150023759,0.85661,2919.2,2918.9,2.64874408]
[1645150023960,0.86420547,2919.2,2918.9,2.64874408]
[1645150025063,0.86106057,2919.2,2918.9,2.64874408]
[1645150025264,0.86420547,2919.2,2918.9,2.64874408]
[1645150026263,0.86106057,2919.2,2918.9,2.64874408]
[1645150026563,0.86420547,2919.2,2918.9,6.14874408]
[1645150026762,0.86420547,2919.2,2918.9,2.64874408]
[1645150027165,0.00759547,2919.2,2919.0,20.28]
[1645150027410,0.00445057,2919.6,2919.1,4.3565]
[1645150027608,2.07655319,2919.9,2919.1,4.3565]
[1645150027609,0.0031449,2919.2,2919.1,0.8565]
[1645150028610,1.71308,2919.7,2919.1,4.29432]
[1645150028811,0.00109405,2919.3,2919.1,4.29432]
[1645150029010,0.00109405,2919.3,2919.2,3.5]
[1645150029310,0.00437551,2919.8,2919.2,3.5]
[1645150029515,0.00437551,2919.8,2919.4,0.85642]
[1645150029712,0.00437551,2919.8,2919.5,3.5]
[1645150029914,0.01683788,2920.3,2919.5,3.8]
[1645150030314,0.01683788,2920.3,2919.6,1.72286844]
[1645150030518,0.01683788,2920.3,2920.2,1.14250922]
[1645150030717,0.01683788,2920.3,2920.2,1.10772922]
[1645150031469,0.01683788,2920.3,2920.2,0.88118922]
[1645150031867,0.01683788,2920.3,2920.2,0.87613922]
[1645150032467,0.85632,2920.2,2919.8,1.1817]
[1645150032668,0.85632,2920.2,2919.7,1.8454]
[1645150032868,0.85632,2920.2,2919.9,0.85633]
[1645150033470,0.01683788,2920.3,2920.1,0.91197149]
[1645150033870,0.00333893,2920.2,2920.1,2.62436149]
[1645150034669,0.01683788,2920.3,2920.1,2.62436149]
[1645150034908,0.02017674,2920.3,2920.1,2.62436149]
[1645150035808,0.01683788,2920.3,2920.1,2.62436149]
[1645150036008,0.01683788,2920.3,2920.1,6.12436149]
[1645150036210,0.01683788,2920.3,2920.1,2.62436149]
[1645150036211,0.02017671,2920.3,2920.1,2.62436149]
[1645150036412,0.02017671,2920.3,2920.1,6.12436149]
[1645150036812,0.02017671,2920.3,2920.1,2.62436149]
[1645150037010,0.01683788,2920.3,2920.1,2.62436149]
[1645150037210,0.02017671,2920.3,2920.1,2.62436149]
[1645150037612,0.02017671,2920.3,2920.1,6.12436149]
[1645150037811,0.02017671,2920.3,2920.2,23.78]
[1645150038221,0.01683788,2920.3,2920.2,23.78]
[1645150038561,0.01683788,2920.3,2920.2,20.28]
[1645150039160,0.01683788,2920.3,2920.2,21.13613]
[1645150039563,0.01683788,2920.3,2920.2,0.85613]
[1645150039763,0.01683788,2920.3,2920.1,0.91197149]
[1645150040365,0.87324788,2920.3,2920.1,0.91197149]
[1645150040663,0.87324788,2920.3,2919.9,3.0647]
[1645150040868,0.87658671,2920.3,2919.8,1.1272]
[1645150041064,0.87658671,2920.3,2919.6,1.71273]
[1645150041567,0.87658671,2920.3,2919.8,0.8564]
[1645150041568,0.85642,2920.2,2919.8,0.8564]
[1645150041769,0.85642,2920.2,2919.9,1.1827509]
[1645150042168,0.003339,2920.1,2919.9,1.1827509]
[1645150042607,0.003339,2920.1,2919.9,2.0391309]
[1645150043010,0.01683788,2920.3,2919.9,2.0391309]
[1645150043414,0.00333897,2920.1,2919.9,2.0391309]
[1645150044211,0.01683788,2920.3,2919.9,2.0391309]
[1645150044710,0.00333897,2920.1,2920.0,3.5]
[1645150045116,0.00333897,2920.1,2920.0,24.78]
[1645150045314,0.00333897,2920.1,2920.0,4.8]
[1645150045516,0.01683788,2920.3,2920.0,4.8]
[1645150045717,0.00333893,2920.2,2920.1,0.8562]
[1645150046165,0.00333893,2920.2,2920.1,4.3562]
[1645150046367,0.00333893,2920.2,2920.1,24.55058001]
[1645150046571,0.01683788,2920.3,2920.1,24.55058001]
[1645150046768,0.01683788,2920.3,2920.2,23.78]
[1645150046968,0.02017674,2920.3,2920.2,24.08]
[1645150047571,0.02017674,2920.3,2920.2,26.64807]
[1645150047769,0.01683788,2920.3,2920.2,26.64807]
[1645150048574,0.01683788,2920.3,2920.2,27.64807]
[1645150050015,0.01683788,2920.3,2920.2,24.14807]
[1645150050217,0.00420564,2920.8,2920.3,6.0]
[1645150050415,0.00420564,2920.8,2920.7,20.28]
[1645150050613,0.01755881,2920.8,2920.7,20.775]
[1645150050815,0.01755881,2920.8,2920.7,23.4461]
[1645150051016,0.01755881,2920.8,2920.7,23.7461]
[1645150051415,0.00442831,2921.9,2921.2,20.28]
[1645150051616,0.07298891,2921.8,2921.3,0.93822879]
[1645150051814,0.07298891,2921.8,2921.3,21.21822879]
[1645150052815,0.07298891,2921.8,2921.4,20.28]
[1645150053016,0.00128264,2921.7,2921.4,20.28]
[1645150053217,0.00128264,2921.7,2921.3,2.09394879]
[1645150053417,0.00128264,2921.7,2921.3,1.23822879]
[1645150053663,0.00969392,2921.7,2921.3,1.23822879]
[1645150053866,0.07298891,2921.6,2921.3,1.23822879]
[1645150054066,0.93024155,2921.6,2921.3,1.23822879]
[1645150054263,0.07741722,2921.5,2921.3,1.23822879]
[1645150054464,0.00442831,2921.5,2921.3,1.23822879]
[1645150054666,0.072988,2921.4,2921.3,1.23822879]
[1645150054863,0.0729888,2921.4,2921.3,2.09415879]
[1645150055264,0.01176253,2921.5,2921.3,2.09415879]
[1645150055463,0.01176253,2921.5,2921.3,0.3]
[1645150055665,0.01176253,2921.5,2921.1,2.01183]
[1645150055666,0.07299178,2921.4,2921.1,2.01183]
[1645150055865,0.07299178,2921.4,2921.1,1.71183]
[1645150056269,0.07299178,2921.4,2921.1,3.4234]
[1645150056471,0.0763431,2921.4,2921.1,1.71183]
[1645150056769,0.08475438,2921.4,2921.1,1.71183]
[1645150056966,0.07299178,2921.3,2921.1,1.71183]
[1645150057310,0.07299178,2921.3,2921.2,1.11701946]
[1645150057710,0.07299178,2921.3,2921.2,1.41701946]
[1645150057711,0.08475442,2921.3,2921.2,1.41701946]
[1645150058511,0.01176264,2921.3,2921.2,1.41701946]
[1645150058710,0.00841128,2921.3,2921.2,1.41701946]
[1645150059115,0.08140227,2921.3,2921.2,1.41701946]
[1645150060818,0.08140227,2921.3,2921.1,0.85599]
[1645150061075,0.07299099,2921.2,2920.5,1.2453]
[1645150061478,0.07299099,2921.2,2920.7,0.00334952]
[1645150061678,0.93758227,2921.2,2920.7,0.00334952]
[1645150061873,1.26209728,2921.1,2920.7,0.00334952]
[1645150062074,0.07299099,2921.0,2920.7,0.00334952]
[1645150062277,0.85625,2920.9,2920.5,0.89911463]
[1645150062475,0.0774193,2920.8,2920.5,0.89911463]
[1645150062774,0.0774193,2920.8,2920.7,0.00335202]
[1645150062775,0.01283959,2920.8,2920.7,0.00335202]
[1645150062976,0.08584137,2920.8,2920.7,0.00335202]
[1645150063375,0.08141047,2920.8,2920.7,0.00335202]
[1645150063576,0.08141047,2920.8,2920.5,1.19911463]
[1645150063577,0.00841128,2920.8,2920.6,20.28]
[1645150063776,0.00841128,2920.8,2920.7,23.78]
[1645150064179,0.00841128,2920.8,2920.7,24.08]
[1645150064808,0.00841128,2920.8,2920.6,1.15612]
[1645150065110,0.00841128,2920.8,2920.6,24.93947201]
[1645150065309,0.00841128,2920.8,2920.7,3.8]
[1645150065509,0.00841128,2920.8,2920.7,0.3]
[1645150065707,0.00841128,2920.8,2920.6,23.48229201]
[1645150065908,0.00841128,2920.8,2920.6,23.47894]
[1645150066116,0.00841128,2920.8,2920.7,23.78]
[1645150066515,0.00957056,2921.7,2921.6,1.18374582]
[1645150066719,0.09938338,2921.7,2921.6,1.18374582]
[1645150066914,0.09495507,2921.7,2921.6,1.18374582]
[1645150067115,0.08981282,2921.7,2921.6,1.18374582]
[1645150068766,0.88352901,2922.6,2921.6,1.18374582]
[1645150068967,10.14993638,2923.2,2921.6,1.18374582]
[1645150068968,6.32459973,2923.1,2921.6,1.18374582]
[1645150069167,1.71195,2922.7,2921.6,1.18374582]
[1645150069370,0.495,2922.6,2921.6,1.18374582]
[1645150069569,0.85592,2922.3,2921.6,1.18374582]
[1645150069867,0.85598,2922.2,2921.6,1.48374582]
[1645150070667,0.85598,2922.2,2921.6,1.18374582]
[1645150070867,0.85593,2922.1,2921.6,1.18374582]
[1645150071068,0.00336413,2922.0,2921.6,1.48374582]
[1645150071768,0.00336413,2922.0,2921.6,1.18374582]
[1645150071973,1.71204,2922.1,2921.6,1.18374582]
[1645150072410,0.0033642,2921.9,2921.6,1.18374582]
[1645150072611,1.7154442,2921.9,2921.6,1.18374582]
[1645150072815,0.8594042,2921.9,2921.6,1.48374582]
[1645150073219,0.85604,2921.9,2921.6,1.48374582]
[1645150073419,0.85940424,2921.9,2921.6,1.48374582]
[1645150073815,1.71542424,2921.9,2921.6,1.18374582]
[1645150074016,0.85940424,2921.9,2921.6,1.48374582]
[1645150074415,0.85940424,2921.9,2921.3,0.85599]
[1645150074416,0.3,2921.8,2921.3,0.85599]
[1645150074625,0.85612,2921.7,2921.1,0.3]
[1645150074816,0.85611,2921.7,2920.9,0.00947838]
[1645150075018,2.01233,2921.8,2920.9,0.00947838]
[1645150075019,0.3,2921.8,2920.9,0.00947838]
[1645150075220,1.44216424,2921.9,2920.9,20.28947838]
[1645150075418,1.44216424,2921.9,2921.7,1.11658391]
[1645150075620,0.3,2921.9,2921.7,1.11658391]
[1645150075822,3.29920044,2922.6,2921.7,1.11658391]
[1645150075823,0.01280049,2922.0,2921.7,1.41658391]
[1645150076079,0.01280049,2922.0,2921.7,1.11658391]
[1645150076874,0.85591,2922.3,2921.7,1.41658391]
[1645150077079,0.00320028,2922.0,2921.7,1.41658391]
[1645150077776,0.85913028,2922.0,2921.7,1.11658391]
[1645150077978,1.71189,2922.3,2921.7,1.41658391]
[1645150078277,0.00320028,2922.0,2921.5,1.71171]
[1645150079479,0.00336424,2921.9,2921.5,1.71171]
[1645150079678,0.00336424,2921.9,2921.6,1.07583469]
[1645150080116,0.85933424,2921.9,2921.6,1.37583469]
[1645150080316,0.85597,2921.9,2921.6,1.37583469]
[1645150080716,0.85933424,2921.9,2921.6,1.37583469]
[1645150081316,0.85604,2921.8,2921.6,1.37583469]
[1645150081719,1.71213,2921.8,2921.6,1.07583469]
[1645150082423,0.85604,2921.8,2921.6,1.07583469]
[1645150083020,0.85940427,2921.8,2921.6,1.07583469]
[1645150083319,3.13969427,2922.0,2921.6,1.07583469]
[1645150083566,0.85606,2921.9,2921.6,1.07583469]
[1645150083766,1.15606,2921.9,2921.6,1.07583469]
[1645150083966,2.01643617,2921.9,2921.6,1.07583469]
[1645150084368,0.85604,2921.8,2921.6,1.07583469]
[1645150084766,0.85604,2921.8,2921.6,1.37583469]
[1645150085170,0.85604,2921.8,2921.0,3.6711]
[1645150085171,0.85604,2921.8,2921.0,0.1711]
[1645150085372,0.86047617,2921.7,2921.2,0.3]
[1645150085673,2.01658617,2921.7,2920.9,1.14827417]
[1645150086272,0.92905884,2921.3,2920.2,3.5]
[1645150086478,0.92905884,2921.3,2920.1,0.1711]
[1645150086479,1.71283,2921.1,2920.1,0.1711]
[1645150086673,1.71283,2921.1,2919.7,5.1825]
[1645150086674,0.86082617,2921.0,2920.9,0.00336516]
[1645150086874,1.15642,2921.0,2920.9,0.00336516]
[1645150087515,2.86925,2921.0,2920.9,0.00336516]
[1645150087713,2.86925,2921.0,2920.0,3.5]
[1645150087913,2.86925,2921.0,2919.8,2.00691]
[1645150087914,0.85642,2920.6,2920.1,1.4600001]
[1645150088114,0.85642,2920.6,2919.8,4.9505]
[1645150088312,0.85642,2920.6,2919.9,1.46004226]
[1645150088913,0.85642,2920.6,2920.2,0.9804946]
[1645150090121,0.85647,2920.3,2919.4,4.5664]
[1645150090319,0.85647,2920.3,2919.5,1.46027264]
[1645150090520,0.85647,2920.3,2918.9,20.0]
[1645150090521,0.495,2920.2,2918.9,20.0]
[1645150090715,5.0,2919.9,2919.0,1.46040162]
[1645150091068,0.85687,2919.6,2919.3,1.16787093]
[1645150091271,0.85687,2919.5,2919.3,1.16787093]
[1645150091872,0.85687,2919.5,2918.9,20.0]
[1645150092176,1.85687,2919.6,2918.9,20.0]
[1645150092373,0.85687,2919.6,2918.9,20.0]
[1645150093073,0.85687,2919.6,2919.2,0.94667035]
[1645150093873,0.85676,2919.5,2919.2,0.94667035]
[1645150094273,1.71363,2919.4,2919.2,0.94667035]
[1645150094474,1.71363,2919.4,2918.9,20.0]
[1645150094811,1.1568,2919.3,2918.9,20.0]
[1645150095011,1.1568,2919.3,2919.0,0.00336378]
[1645150095316,0.85672,2919.7,2919.0,0.00336378]
[1645150095512,2.22063349,2919.8,2919.4,1.55785489]
[1645150095711,2.52063349,2919.8,2919.4,1.55785489]
[1645150095912,0.85671,2919.7,2919.4,1.55785489]
[1645150096315,2.71346,2919.7,2919.5,0.00336346]
[1645150096515,1.71346,2919.7,2919.5,0.00336346]
[1645150096720,1.0,2919.6,2919.5,0.00336346]
[1645150097317,1.0,2919.6,2919.4,1.55785489]
[1645150097318,0.3,2919.5,2919.4,1.55785489]
[1645150097517,0.3,2919.5,2919.4,1.56121838]
[1645150098318,0.3,2919.5,2919.4,1.55785489]
[1645150099565,0.3,2919.5,2919.4,0.61944181]
[1645150099769,7.01377,2919.5,2919.4,0.61944181]
[1645150100171,7.01377,2919.5,2918.9,20.0]
[1645150100172,5.0,2919.4,2918.9,20.0]
[1645150100478,5.0,2919.4,2918.9,11.35746048]
[1645150100479,5.0,2919.0,2918.9,11.35746048]
[1645150100673,0.89057572,2918.2,2918.1,1.55852551]
[1645150101269,0.3,2918.2,2918.1,1.55852551]
[1645150101669,1.15718,2918.3,2918.1,1.55852551]
[1645150102070,2.01436,2918.3,2918.1,1.55852551]
[1645150102315,3.02020164,2918.3,2918.1,1.55852551]
[1645150102721,0.3,2918.2,2918.1,1.55852551]
[1645150102918,2.1572,2918.2,2918.1,1.55852551]
[1645150103122,1.1572,2918.2,2918.1,1.55852551]
[1645150103323,2.1572,2918.2,2918.1,1.55852551]
[1645150103521,2.6522,2918.2,2918.1,1.55852551]
[1645150103919,7.6522,2918.2,2918.1,1.55852551]
[1645150104118,2.6522,2918.2,2918.1,1.55852551]
[1645150105522,1.795,2918.2,2918.1,1.55852551]
[1645150106673,1.37243794,2918.3,2918.1,1.55852551]
[1645150106872,0.51525794,2918.3,2918.1,1.55852551]
[1645150107073,5.08176106,2919.5,2918.2,0.1713]
[1645150107274,5.08176106,2919.5,2918.2,3.6713]
[1645150107670,0.88942256,2919.1,2918.5,0.92795611]
[1645150107870,0.88942256,2919.1,2918.2,0.1713]
[1645150107871,0.85691,2918.9,2918.2,0.1713]
[1645150108273,0.85691,2918.9,2918.7,0.00336137]
[1645150108675,1.71381,2919.5,2918.7,0.00336137]
[1645150108875,4.61429,2919.9,2918.7,0.00336137]
[1645150108876,0.85668,2919.6,2918.7,0.00336137]
[1645150109072,1.6265,2920.0,2918.7,0.00336137]
[1645150109275,1.6265,2920.0,2918.2,3.6713]
[1645150109673,1.6265,2920.0,2919.0,0.00336112]
[1645150109913,1.6265,2920.0,2919.2,0.9778028]
[1645150109914,1.51551799,2919.8,2919.2,0.9778028]
[1645150110112,0.85664,2919.7,2919.2,0.9778028]
[1645150110711,1.15664,2919.7,2919.2,0.98116388]
[1645150110913,0.3,2919.7,2919.2,0.98116388]
[1645150111117,0.3,2919.7,2919.2,0.00336108]
[1645150111118,0.8567,2919.5,2919.2,0.00336108]
[1645150111316,1.1567,2919.5,2919.2,0.00336108]
[1645150111716,1.1567,2919.5,2918.3,4.6355]
[1645150111918,6.1567,2919.5,2919.2,0.00336104]
[1645150112118,6.15129348,2919.3,2919.2,0.00336104]
[1645150112320,7.24629348,2919.3,2919.2,0.00336104]
[1645150112516,3.24629348,2919.3,2919.2,0.00336104]
[1645150112916,0.95834757,2918.8,2918.1,2.42151993]
[1645150113216,0.3,2918.7,2918.1,2.42151993]
[1645150113424,0.3,2918.7,2918.1,2.59281993]
[1645150113664,0.3,2918.7,2918.1,3.44966993]
[1645150114667,0.3,2918.7,2918.1,6.94966993]
[1645150114867,0.85681,2919.0,2918.1,1.55852551]
[1645150114868,0.6,2919.0,2918.1,1.55852551]
[1645150115068,0.85688,2918.7,2918.1,1.55852551]
[1645150115268,0.3,2918.6,2918.1,1.55852551]
[1645150115869,1.07613886,2918.5,2918.4,0.00335889]
[1645150116069,1.15716,2918.6,2918.5,0.48228081]
[1645150116273,2.12992707,2918.6,2918.5,0.48228081]
[1645150116672,2.98708707,2918.6,2918.5,0.48228081]
[1645150116871,3.84423707,2918.6,2918.5,0.48228081]
[1645150117071,2.01431,2918.6,2918.5,0.48228081]
[1645150117713,2.31423,2918.6,2918.5,0.48228081]
[1645150117916,3.31423,2918.6,2918.5,0.48228081]
[1645150118116,3.01423,2918.6,2918.5,0.48228081]
[1645150118315,2.50923,2918.6,2918.5,0.48228081]